fUST/lending_fUST_20260611
["ID","MTS","AMOUNT","RATE_DAILY","PERIOD"]
[424775097,1781151042000,-501.07105982,0.00021917,2]
[424775100,1781151042000,-505.53767825,0.00021917,2]
[424775103,1781151042000,-503.90801291,0.00021917,2]
[424775065,1781151042000,-252.41255485,0.00021917,2]
[424775158,1781151042000,-501.30435462,0.00021917,2]
[424775085,1781151042000,-501.34534637,0.00021917,2]
[424775173,1781151042000,-508.30550345,0.00021917,2]
[424775226,1781151042000,-500.58645339,0.00021917,2]
[424775230,1781151042000,-500.53219871,0.00021917,2]
[424775240,1781151042000,-9167.0693855,0.00023297,2]
[424775237,1781151042000,-444.0,0.00023147,2]
[424775224,1781151042000,-503.08879225,0.00021917,2]
[424775233,1781151042000,-720.0,0.00022327,10]
[424775254,1781151042000,-186.0,0.00032147,2]
[424775257,1781151042000,-186.0,0.00035147,2]
[424775249,1781151042000,-444.0,0.00029147,2]
[424775248,1781151042000,-1000.0,0.00027015,30]
[424775253,1781151042000,-444.0,0.00032147,2]
[424775246,1781151042000,-186.0,0.00026147,2]
[424775252,1781151042000,-244.0,0.00029717,30]
[424775239,1781151042000,-186.0,0.00023147,2]
[424775255,1781151042000,-463.0,0.00032688,30]
[424775251,1781151042000,-1000.0,0.00029717,30]
[424775260,1781151042000,-168.7941719,0.00035992,2]
[424775256,1781151042000,-444.0,0.00035147,2]
[424775259,1781151042000,-790.9780894,0.00035992,2]
[424775258,1781151042000,-489.76699269,0.0003579,2]
[424775270,1781151042000,-151.0,0.00037,14]
[424775265,1781151042000,-500.0,0.00036955,5]
[424775269,1781151042000,-151.0,0.00037,14]
[424775261,1781151042000,-187.6850652,0.00035992,2]
[424775263,1781151042000,-1977.8843646,0.00035992,2]
[424775267,1781151042000,-151.0,0.00037,14]
[424775272,1781151042000,-151.0,0.00037,14]
[424775169,1781151042000,-501.63810968,0.00021917,2]
[424775250,1781151042000,-186.0,0.00029147,2]
[424775244,1781151042000,-444.0,0.00026147,2]
[424775114,1781151042000,-501.77070052,0.00021917,2]
[424775235,1781151042000,-152.0,0.0002292,7]
[424775222,1781151042000,-507.38641681,0.00021917,2]
[424775188,1781151042000,-512.459437,0.00021917,2]
[424775186,1781151042000,-500.22987366,0.00021917,2]
[424775193,1781151042000,-519.51299752,0.00021917,2]
[424775177,1781151042000,-500.48286042,0.00021917,2]
[424775189,1781151042000,-500.45319197,0.00021917,2]
[424775184,1781151042000,-502.52512964,0.00021917,2]
[424775195,1781151042000,-500.72928644,0.00021917,2]
[424775182,1781151042000,-501.98178009,0.00021917,2]
[424775178,1781151042000,-500.45988766,0.00021917,2]
[424775180,1781151042000,-501.5080856,0.00021917,2]
[424775197,1781151042000,-501.39500264,0.00021917,2]
[424775199,1781151042000,-501.4713632,0.00021917,2]
[424775204,1781151042000,-504.27435447,0.00021917,2]
[424775191,1781151042000,-500.25065473,0.00021917,2]
[424775203,1781151042000,-500.9161045,0.00021917,2]
[424775208,1781151042000,-501.43895384,0.00021917,2]
[424775220,1781151042000,-201.62373827,0.00021917,2]
[424775242,1781151042000,-864.0,0.00024559,10]
[424775231,1781151042000,-192.7,0.00022191,2]
[424775228,1781151042000,-501.2978918,0.00021917,2]
[424775219,1781151042000,-500.8417701,0.00021917,2]
[424775215,1781151042000,-501.71743883,0.00021917,2]
[424775175,1781151042000,-505.23779302,0.00021917,2]
[424775217,1781151042000,-501.36207011,0.00021917,2]
[424775213,1781151042000,-503.61859395,0.00021917,2]
[424775212,1781151042000,-500.69657439,0.00021917,2]
[424775210,1781151042000,-527.34069082,0.00021917,2]
[424775206,1781151042000,-500.66530658,0.00021917,2]
[424775201,1781151042000,-502.50718441,0.00021917,2]
[424775274,1781151043000,-151.0,0.00037,14]
[424775276,1781151043000,-151.0,0.00037,14]
[424775281,1781151043000,-292.0,0.00037,14]
[424775279,1781151043000,-151.0,0.00037,14]
[424775282,1781151043000,-168.7941719,0.00037319,2]
[424775295,1781151043000,-218.04664016,0.00038,120]
[424775275,1781151043000,-151.0,0.00037,14]
[424775284,1781151043000,-69268.91356399,0.00038,120]
[424775420,1781151044000,-3151.5674533,0.00038,120]
[424775418,1781151044000,-4182.66111271,0.00038,120]
[424775411,1781151044000,-7979.47209271,0.00026698,2]
[424775413,1781151044000,-17060.52790724,0.00038,120]
[424775409,1781151044000,-262.02037141,0.00026698,2]
[424775406,1781151044000,-925.57692138,0.00026698,2]
[424775468,1781151047000,-545.5,0.00038,120]
[424775469,1781151244000,396.11485828,0.0002411,30]
[424775470,1781151252000,5000.0,0.0002411,30]
[424775471,1781151745000,210.97874986,0.00020239,60]
[424775484,1781152232000,-30.0381893,0.0001829,2]
[424775486,1781152232000,-545.95463842,0.00018475,2]
[424775478,1781152232000,-4969.9618107,0.0001829,2]
[424775603,1781152239000,-581.8,0.00019999,2]
[424775583,1781152239000,-500.0,0.00019835,2]
[424775588,1781152239000,-5729.41836599,0.00019897,2]
[424775587,1781152239000,-159.28368088,0.00019835,2]
[424775584,1781152239000,-500.0,0.00019835,2]
[424775589,1781152239000,-581.8,0.00019898,2]
[424775591,1781152239000,-232.894,0.00019968,2]
[424775590,1781152239000,-595.77516257,0.00019898,2]
[424775600,1781152239000,-581.8,0.00019999,2]
[424775592,1781152239000,-11238.7866946,0.00019968,2]
[424775594,1781152239000,-581.8,0.00019999,2]
[424775597,1781152239000,-581.8,0.00019999,2]
[424775598,1781152239000,-581.8,0.00019999,2]
[424775599,1781152239000,-581.8,0.00019999,2]
[424775596,1781152239000,-581.8,0.00019999,2]
[424775595,1781152239000,-581.8,0.00019999,2]
[424775601,1781152239000,-581.8,0.00019999,2]
[424775602,1781152239000,-581.8,0.00019999,2]
[424775582,1781152239000,-500.0,0.00019835,2]
[424775593,1781152239000,-581.8,0.00019997,2]
[424775586,1781152239000,-329.90542051,0.00019835,2]
[424775585,1781152239000,-500.0,0.00019835,2]
[424775560,1781152239000,-300.0,0.00018812,2]
[424775559,1781152239000,-3800.0,0.0001829,2]
[424775561,1781152239000,-226.3516068,0.00018813,2]
[424775563,1781152239000,-165.059733,0.00019074,2]
[424775562,1781152239000,-167.35,0.0001885,2]
[424775604,1781152239000,-581.8,0.00019999,2]
[424775564,1781152239000,-251.55313256,0.000197,2]
[424775567,1781152239000,-500.0,0.00019835,2]
[424775565,1781152239000,-417.15472785,0.00019775,2]
[424775568,1781152239000,-500.0,0.00019835,2]
[424775572,1781152239000,-500.0,0.00019835,2]
[424775566,1781152239000,-769.05815496,0.00019775,2]
[424775570,1781152239000,-500.0,0.00019835,2]
[424775569,1781152239000,-500.0,0.00019835,2]
[424775574,1781152239000,-500.0,0.00019835,2]
[424775576,1781152239000,-500.0,0.00019835,2]
[424775578,1781152239000,-229.69289627,0.00019835,2]
[424775580,1781152239000,-500.0,0.00019835,2]
[424775581,1781152239000,-500.0,0.00019835,2]
[424775558,1781152239000,-1200.0,0.0001829,2]
[424775608,1781152239000,-581.8,0.00019999,2]
[424775627,1781152239000,-508.63536408,0.00020107,2]
[424775607,1781152239000,-581.8,0.00019999,2]
[424775631,1781152239000,-508.63536408,0.00020107,2]
[424775606,1781152239000,-581.8,0.00019999,2]
[424775636,1781152239000,-572.2147846,0.00020107,2]
[424775632,1781152239000,-508.63536408,0.00020107,2]
[424775637,1781152239000,-572.2147846,0.00020107,2]
[424775635,1781152239000,-572.2147846,0.00020107,2]
[424775634,1781152239000,-572.2147846,0.00020107,2]
[424775638,1781152239000,-572.2147846,0.00020107,2]
[424775629,1781152239000,-508.63536408,0.00020107,2]
[424775639,1781152239000,-572.2147846,0.00020107,2]
[424775642,1781152239000,-572.2147846,0.00020107,2]
[424775641,1781152239000,-572.2147846,0.00020107,2]
[424775646,1781152239000,-1000.0,0.0002011,2]
[424775648,1781152239000,-512.22981823,0.00020383,2]
[424775645,1781152239000,-500.0,0.00020109,2]
[424775647,1781152239000,-2119.7946935,0.00020152,2]
[424775643,1781152239000,-572.2147846,0.00020107,2]
[424775649,1781152239000,-501114.05885377,0.00021816,2]
[424775640,1781152239000,-572.2147846,0.00020107,2]
[424775630,1781152239000,-508.63536408,0.00020107,2]
[424775633,1781152239000,-572.2147846,0.00020107,2]
[424775625,1781152239000,-508.63536408,0.00020107,2]
[424775605,1781152239000,-581.8,0.00019999,2]
[424775609,1781152239000,-581.8,0.00019999,2]
[424775610,1781152239000,-581.8,0.00019999,2]
[424775612,1781152239000,-581.8,0.00019999,2]
[424775611,1781152239000,-581.8,0.00019999,2]
[424775628,1781152239000,-508.63536408,0.00020107,2]
[424775613,1781152239000,-581.8,0.00019999,2]
[424775615,1781152239000,-581.99,0.00019999,2]
[424775617,1781152239000,-201.12061934,0.00020107,2]
[424775614,1781152239000,-581.8,0.00019999,2]
[424775618,1781152239000,-508.63536408,0.00020107,2]
[424775620,1781152239000,-508.63536408,0.00020107,2]
[424775621,1781152239000,-508.63536408,0.00020107,2]
[424775619,1781152239000,-508.63536408,0.00020107,2]
[424775622,1781152239000,-508.63536408,0.00020107,2]
[424775623,1781152239000,-508.63536408,0.00020107,2]
[424775624,1781152239000,-508.63536408,0.00020107,2]
[424775626,1781152239000,-508.63536408,0.00020107,2]
[424775616,1781152239000,-1378.5,0.00020007,2]
[424775644,1781152239000,-813.40639277,0.00020107,2]
[424775659,1781152241000,-2192.39892396,0.00021816,2]
[424775667,1781152243000,-5581.05404334,0.00021816,2]
[424775669,1781152244000,-21941.73,0.00021816,2]
[424775670,1781152244000,-1420.0,0.00021816,2]
[424775668,1781152244000,-7612.38510398,0.00021816,2]
[424775696,1781152246000,-280.2939363,0.00021816,2]
[424775697,1781152247000,-48201.39344485,0.00021816,2]
[424775711,1781152704000,284.79962853,0.00021211,120]
[424775718,1781153431000,-720.49265734,0.00017397,6]
[424775804,1781153438000,-14841.3847198,0.00021146,2]
[424775803,1781153438000,-5013.24107025,0.00021046,2]
[424775805,1781153438000,-478.2707393,0.00021146,2]
[424775819,1781153438000,-500.0,0.00021643,2]
[424775807,1781153438000,-12165.5753633,0.00021146,2]
[424775818,1781153438000,-500.0,0.00021643,2]
[424775809,1781153438000,-343.57154537,0.00021151,2]
[424775808,1781153438000,-168.7941719,0.00021146,2]
[424775812,1781153438000,-230428.48881372,0.00021256,2]
[424775811,1781153438000,-152.30053824,0.00021255,20]
[424775817,1781153438000,-500.0,0.00021643,2]
[424775813,1781153438000,-29367.16909353,0.00021256,2]
[424775816,1781153438000,-500.0,0.00021643,2]
[424775814,1781153438000,-172.95826501,0.00021543,2]
[424775810,1781153438000,-359.51434033,0.00021219,2]
[424775800,1781153438000,-769.05815496,0.00020888,2]
[424775801,1781153438000,-271.72,0.00021037,2]
[424775802,1781153438000,-247.706,0.00021046,2]
[424775797,1781153438000,-500.0,0.00020151,2]
[424775783,1781153438000,-500.0,0.00017397,6]
[424775785,1781153438000,-1911.84105648,0.00017573,6]
[424775784,1781153438000,-3779.50734266,0.00017397,6]
[424775786,1781153438000,-166.77,0.00018111,2]
[424775788,1781153438000,-1000.0,0.00019489,2]
[424775791,1781153438000,-227.3970833,0.00019877,2]
[424775789,1781153438000,-1145.1269476,0.00019558,2]
[424775815,1781153438000,-500.0,0.00021643,2]
[424775790,1781153438000,-175.661697,0.00019805,2]
[424775793,1781153438000,-1811.92,0.00019967,2]
[424775794,1781153438000,-500.0,0.00019998,2]
[424775796,1781153438000,-1728.0,0.00019998,2]
[424775806,1781153438000,-168.794172,0.00021146,2]
[424775795,1781153438000,-1811.92,0.00019998,2]
[424775799,1781153438000,-417.15472785,0.00020888,2]
[424775798,1781153438000,-1811.92,0.00020151,2]
[424775792,1781153438000,-500.0,0.00019967,2]
[424775821,1781153438000,-185.54340822,0.00021643,2]
[424775787,1781153438000,-352.40120125,0.00019205,7]
[424775832,1781153438000,-1811.92,0.00021815,2]
[424775839,1781153438000,-1811.92,0.00021815,2]
[424775842,1781153438000,-1811.92,0.00021815,2]
[424775847,1781153438000,-500.0,0.00021917,2]
[424775857,1781153438000,-500.0,0.00021917,2]
[424775846,1781153438000,-1812.03026004,0.00021815,2]
[424775858,1781153438000,-500.0,0.00021917,2]
[424775859,1781153438000,-500.0,0.00021917,2]
[424775841,1781153438000,-1811.92,0.00021815,2]
[424775850,1781153438000,-2790.735,0.00021917,2]
[424775849,1781153438000,-500.0,0.00021917,2]
[424775848,1781153438000,-500.0,0.00021917,2]
[424775855,1781153438000,-500.0,0.00021917,2]
[424775854,1781153438000,-500.0,0.00021917,2]
[424775853,1781153438000,-500.9916287,0.00021917,2]
[424775856,1781153438000,-500.0,0.00021917,2]
[424775831,1781153438000,-1811.92,0.00021815,2]
[424775852,1781153438000,-500.0,0.00021917,2]
[424775843,1781153438000,-1811.92,0.00021815,2]
[424775851,1781153438000,-500.0,0.00021917,2]
[424775837,1781153438000,-1811.92,0.00021815,2]
[424775820,1781153438000,-500.0,0.00021643,2]
[424775840,1781153438000,-1811.92,0.00021815,2]
[424775822,1781153438000,-1031.12,0.00021716,2]
[424775823,1781153438000,-500.0,0.00021815,2]
[424775825,1781153438000,-393.11710847,0.00021815,2]
[424775829,1781153438000,-1811.92,0.00021815,2]
[424775827,1781153438000,-1811.92,0.00021815,2]
[424775828,1781153438000,-1811.92,0.00021815,2]
[424775824,1781153438000,-500.0,0.00021815,2]
[424775830,1781153438000,-1811.92,0.00021815,2]
[424775833,1781153438000,-1811.92,0.00021815,2]
[424775836,1781153438000,-1811.92,0.00021815,2]
[424775844,1781153438000,-1811.92,0.00021815,2]
[424775835,1781153438000,-1811.92,0.00021815,2]
[424775838,1781153438000,-1811.92,0.00021815,2]
[424775834,1781153438000,-1811.92,0.00021815,2]
[424775826,1781153438000,-1811.92,0.00021815,2]
[424775845,1781153438000,-1811.92,0.00021815,2]
[424775895,1781153439000,-500.0,0.00021917,2]
[424775900,1781153439000,-614.00484412,0.00021917,2]
[424775911,1781153439000,-500.0,0.00021917,2]
[424775898,1781153439000,-500.0,0.00021917,2]
[424775909,1781153439000,-500.0,0.00021917,2]
[424775910,1781153439000,-500.0,0.00021917,2]
[424775894,1781153439000,-500.0,0.00021917,2]
[424775893,1781153439000,-500.0,0.00021917,2]
[424775892,1781153439000,-500.0,0.00021917,2]
[424775889,1781153439000,-500.0,0.00021917,2]
[424775902,1781153439000,-500.0,0.00021917,2]
[424775890,1781153439000,-500.0,0.00021917,2]
[424775899,1781153439000,-500.0,0.00021917,2]
[424775901,1781153439000,-466.17672559,0.00021917,2]
[424775914,1781153439000,-500.0,0.00021917,2]
[424775904,1781153439000,-500.0,0.00021917,2]
[424775907,1781153439000,-543.92300374,0.00021917,2]
[424775905,1781153439000,-620.29224572,0.00021917,2]
[424775906,1781153439000,-500.0,0.00021917,2]
[424775908,1781153439000,-500.0,0.00021917,2]
[424775912,1781153439000,-500.0,0.00021917,2]
[424775915,1781153439000,-500.0,0.00021917,2]
[424775919,1781153439000,-500.0,0.00021917,2]
[424775920,1781153439000,-500.0,0.00021917,2]
[424775917,1781153439000,-500.0,0.00021917,2]
[424775916,1781153439000,-500.0,0.00021917,2]
[424775886,1781153439000,-500.0,0.00021917,2]
[424775918,1781153439000,-500.0,0.00021917,2]
[424775903,1781153439000,-500.0,0.00021917,2]
[424775897,1781153439000,-500.0,0.00021917,2]
[424775866,1781153439000,-500.0,0.00021917,2]
[424775888,1781153439000,-500.0,0.00021917,2]
[424775913,1781153439000,-500.0,0.00021917,2]
[424775860,1781153439000,-500.0,0.00021917,2]
[424775862,1781153439000,-500.0,0.00021917,2]
[424775867,1781153439000,-500.0,0.00021917,2]
[424775861,1781153439000,-500.0,0.00021917,2]
[424775864,1781153439000,-500.0,0.00021917,2]
[424775870,1781153439000,-1000.0,0.00021917,2]
[424775868,1781153439000,-500.0,0.00021917,2]
[424775869,1781153439000,-500.0,0.00021917,2]
[424775863,1781153439000,-500.0,0.00021917,2]
[424775865,1781153439000,-509.17664266,0.00021917,2]
[424775872,1781153439000,-500.0,0.00021917,2]
[424775871,1781153439000,-561.79593633,0.00021917,2]
[424775891,1781153439000,-500.0,0.00021917,2]
[424775874,1781153439000,-500.0,0.00021917,2]
[424775885,1781153439000,-500.0,0.00021917,2]
[424775877,1781153439000,-500.0,0.00021917,2]
[424775875,1781153439000,-500.0,0.00021917,2]
[424775876,1781153439000,-500.0,0.00021917,2]
[424775873,1781153439000,-500.0,0.00021917,2]
[424775878,1781153439000,-500.0,0.00021917,2]
[424775881,1781153439000,-500.0,0.00021917,2]
[424775879,1781153439000,-500.0,0.00021917,2]
[424775880,1781153439000,-500.0,0.00021917,2]
[424775883,1781153439000,-500.0,0.00021917,2]
[424775882,1781153439000,-500.0,0.00021917,2]
[424775887,1781153439000,-500.0,0.00021917,2]
[424775896,1781153439000,-590.36881894,0.00021917,2]
[424775884,1781153439000,-500.0,0.00021917,2]
[424775921,1781153439000,-500.0,0.00021917,2]
[424775946,1781153439000,-500.0,0.00021917,2]
[424775931,1781153439000,-501.66142758,0.00021917,2]
[424775952,1781153439000,-500.0,0.00021917,2]
[424775959,1781153439000,-500.0,0.00021917,2]
[424775957,1781153439000,-500.0,0.00021917,2]
[424775961,1781153439000,-500.0,0.00021917,2]
[424775971,1781153439000,-500.0,0.00021917,2]
[424775973,1781153439000,-502.85106566,0.00021917,2]
[424775977,1781153439000,-500.0,0.00021917,2]
[424775979,1781153439000,-500.0,0.00021917,2]
[424775975,1781153439000,-500.0,0.00021917,2]
[424775969,1781153439000,-500.0,0.00021917,2]
[424775965,1781153439000,-500.65862215,0.00021917,2]
[424775960,1781153439000,-500.0,0.00021917,2]
[424775967,1781153439000,-502.36752816,0.00021917,2]
[424775958,1781153439000,-538.54417453,0.00021917,2]
[424775980,1781153439000,-413.04947413,0.00021917,2]
[424775964,1781153439000,-500.0,0.00021917,2]
[424775983,1781153439000,-500.0,0.00021917,2]
[424775981,1781153439000,-500.0,0.00021917,2]
[424775985,1781153439000,-500.0,0.00021917,2]
[424775922,1781153439000,-500.0,0.00021917,2]
[424775986,1781153439000,-500.0,0.00021917,2]
[424775991,1781153439000,-500.0,0.00021917,2]
[424775990,1781153439000,-500.0,0.00021917,2]
[424775982,1781153439000,-500.0,0.00021917,2]
[424775984,1781153439000,-500.0,0.00021917,2]
[424775987,1781153439000,-500.0,0.00021917,2]
[424775988,1781153439000,-500.0,0.00021917,2]
[424775989,1781153439000,-500.0,0.00021917,2]
[424775962,1781153439000,-500.0,0.00021917,2]
[424775956,1781153439000,-500.0,0.00021917,2]
[424775992,1781153439000,-500.0,0.00021917,2]
[424775948,1781153439000,-500.0,0.00021917,2]
[424775954,1781153439000,-500.0,0.00021917,2]
[424775923,1781153439000,-500.0,0.00021917,2]
[424775926,1781153439000,-500.0,0.00021917,2]
[424775925,1781153439000,-500.0,0.00021917,2]
[424775927,1781153439000,-500.0,0.00021917,2]
[424775924,1781153439000,-500.0,0.00021917,2]
[424775928,1781153439000,-500.0,0.00021917,2]
[424775929,1781153439000,-500.58228132,0.00021917,2]
[424775930,1781153439000,-500.7950514,0.00021917,2]
[424775934,1781153439000,-500.0,0.00021917,2]
[424775936,1781153439000,-500.0,0.00021917,2]
[424775944,1781153439000,-500.0,0.00021917,2]
[424775937,1781153439000,-500.0,0.00021917,2]
[424775933,1781153439000,-500.0,0.00021917,2]
[424775932,1781153439000,-448.36682755,0.00021917,2]
[424775935,1781153439000,-340.52551472,0.00021917,2]
[424775955,1781153439000,-500.0,0.00021917,2]
[424775938,1781153439000,-500.0,0.00021917,2]
[424775950,1781153439000,-500.0,0.00021917,2]
[424775951,1781153439000,-500.0,0.00021917,2]
[424775949,1781153439000,-540.25453223,0.00021917,2]
[424775947,1781153439000,-500.0,0.00021917,2]
[424775953,1781153439000,-500.0,0.00021917,2]
[424775943,1781153439000,-500.0,0.00021917,2]
[424775941,1781153439000,-500.46965094,0.00021917,2]
[424775942,1781153439000,-500.0,0.00021917,2]
[424775939,1781153439000,-500.0,0.00021917,2]
[424775945,1781153439000,-558.45366327,0.00021917,2]
[424775940,1781153439000,-500.0,0.00021917,2]
[424776001,1781153440000,-534.54265231,0.00021917,2]
[424775999,1781153440000,-500.64777459,0.00021917,2]
[424776002,1781153440000,-468.12057552,0.00021917,2]
[424776000,1781153440000,-500.0,0.00021917,2]
[424775996,1781153440000,-500.0,0.00021917,2]
[424775997,1781153440000,-500.0,0.00021917,2]
[424775994,1781153440000,-500.0,0.00021917,2]
[424775995,1781153440000,-500.0,0.00021917,2]
[424775993,1781153440000,-500.0,0.00021917,2]
[424776004,1781153440000,-500.0,0.00021917,2]
[424775998,1781153440000,-501.37428686,0.00021917,2]
[424776008,1781153440000,-501.70264808,0.00021917,2]
[424776016,1781153440000,-500.0,0.00021917,2]
[424776010,1781153440000,-500.0,0.00021917,2]
[424776006,1781153440000,-500.56174012,0.00021917,2]
[424776079,1781153440000,-378.30134153,0.00021698,6]
[424776075,1781153440000,-1246.85715906,0.00021698,6]
[424776022,1781153440000,-500.0,0.00021917,2]
[424776026,1781153440000,-241.23893266,0.00021917,2]
[424776077,1781153440000,-510.48413746,0.00021698,6]
[424776020,1781153440000,-500.0,0.00021917,2]
[424776014,1781153440000,-500.0,0.00021917,2]
[424776018,1781153440000,-500.0,0.00021917,2]
[424776012,1781153440000,-503.22092043,0.00021917,2]
[424776024,1781153440000,-500.0,0.00021917,2]
[424776372,1781153443000,-521.73353126,0.00021698,6]
[424776516,1781153446000,-96.50211424,0.00021917,2]
[424776525,1781153446000,-500.0,0.00021917,2]
[424776517,1781153446000,-500.0,0.00021917,2]
[424776520,1781153446000,-500.0,0.00021917,2]
[424776524,1781153446000,-500.0,0.00021917,2]
[424776523,1781153446000,-501.59866893,0.00021917,2]
[424776527,1781153446000,-500.0,0.00021917,2]
[424776519,1781153446000,-500.0,0.00021917,2]
[424776511,1781153446000,-502.32914631,0.00021917,2]
[424776512,1781153446000,-500.51520183,0.00021917,2]
[424776515,1781153446000,-405.18763887,0.00021917,2]
[424776513,1781153446000,-500.0,0.00021917,2]
[424776514,1781153446000,-500.0,0.00021917,2]
[424776510,1781153446000,-500.0,0.00021917,2]
[424776509,1781153446000,-500.0,0.00021917,2]
[424776507,1781153446000,-686.29485963,0.00021698,6]
[424776506,1781153446000,-1656.32897106,0.00021698,6]
[424776528,1781153446000,-500.0,0.00021917,2]
[424776508,1781153446000,-258.76106734,0.00021917,2]
[424776518,1781153446000,-500.0,0.00021917,2]
[424776522,1781153446000,-500.0,0.00021917,2]
[424776526,1781153446000,-200.50365593,0.00021917,2]
[424776546,1781153446000,-500.0,0.00021917,2]
[424776545,1781153446000,-489.31789355,0.00021917,2]
[424776544,1781153446000,-500.0,0.00021917,2]
[424776542,1781153446000,-500.0,0.00021917,2]
[424776543,1781153446000,-500.0,0.00021917,2]
[424776538,1781153446000,-500.0,0.00021917,2]
[424776537,1781153446000,-500.0,0.00021917,2]
[424776535,1781153446000,-500.0,0.00021917,2]
[424776534,1781153446000,-500.0,0.00021917,2]
[424776539,1781153446000,-37.39473789,0.00021917,2]
[424776533,1781153446000,-500.0,0.00021917,2]
[424776532,1781153446000,-606.06395511,0.00021917,2]
[424776531,1781153446000,-500.0,0.00021917,2]
[424776529,1781153446000,-500.0,0.00021917,2]
[424776547,1781153446000,-393.5842017,0.00021917,2]
[424776540,1781153446000,-462.60526211,0.00021917,2]
[424776541,1781153446000,-500.0,0.00021917,2]
[424776530,1781153446000,-500.0,0.00021917,2]
[424776536,1781153446000,-500.0,0.00021917,2]
[424776521,1781153446000,-500.0,0.00021917,2]
[424776558,1781153840000,5000.0,0.00011,6]
[424776559,1781153848000,4687.38218856,0.00011,6]
[424776560,1781153972000,170.44654496,0.00021232,120]
[424776562,1781153999000,-500.0,9.999e-05,2]
[424776561,1781153999000,-151.0,9.7e-05,2]
[424776572,1781154000000,-3231.80618396,0.0001,2]
[424776571,1781154000000,-2144.02907513,0.0001,2]
[424776570,1781154000000,-500.0,9.999e-05,2]
[424776569,1781154000000,-561.22373228,9.999e-05,2]
[424776568,1781154000000,-500.0,9.999e-05,2]
[424776567,1781154000000,-411.94100863,9.999e-05,2]
[424776566,1781154000000,-500.0,9.999e-05,2]
[424776565,1781154000000,-500.0,9.999e-05,2]
[424776564,1781154000000,-500.0,9.999e-05,2]
[424776563,1781154000000,-500.0,9.999e-05,2]
[424776573,1781154002000,-10000.0,0.0001,2]
[424776574,1781154005000,-175.96214598,0.0001,2]
[424776575,1781154005000,-1388.03481018,0.0001,2]
[424776576,1781154005000,-300.0,0.00010199,2]
[424776577,1781154005000,-300.0,0.00010199,2]
[424776578,1781154005000,-300.0,0.00010199,2]
[424776579,1781154005000,-300.0,0.00010199,2]
[424776580,1781154005000,-300.0,0.00010199,2]
[424776582,1781154005000,-300.0,0.00010199,2]
[424776581,1781154005000,-300.0,0.00010199,2]
[424776583,1781154005000,-300.0,0.00010199,2]
[424776590,1781154005000,-300.0,0.00010199,2]
[424776584,1781154005000,-300.0,0.00010199,2]
[424776587,1781154005000,-300.0,0.00010199,2]
[424776588,1781154005000,-300.0,0.00010199,2]
[424776586,1781154005000,-300.0,0.00010199,2]
[424776589,1781154005000,-300.0,0.00010199,2]
[424776591,1781154005000,-600.0,0.00010199,2]
[424776592,1781154005000,-312.61781144,0.00011,6]
[424776593,1781154005000,-720.0,0.00011219,2]
[424776594,1781154005000,-864.0,0.00012341,2]
[424776585,1781154005000,-300.0,0.00010199,2]
[424776595,1781154024000,565.84977335,0.0002,30]
[424776596,1781154029000,565.84977334,0.0002,30]
[424776597,1781154034000,565.84977334,0.0002,30]
[424776598,1781154092000,-1019.05,0.00013305,2]
[424776599,1781154093000,-2943.28472241,0.00013305,2]
[424776600,1781154093000,-1533.71527759,0.00013439,2]
[424776601,1781154125000,-2565.0,0.00013439,2]